[Event "Titled Tuesday Blitz July 18 Late 2023"]
[White "Tarasova, Viktoriya"]
[Black "Altman, Joshua"]
[WhiteFideId "4175840"]
[BlackFideId "426210"]
[WhiteElo "2376"]
[BlackElo "2556"]
[Result "1/2-1/2"]
[Round "4"]
[TimeControl "180+2"]
[Date "2023.07.18"]
[WhiteClock "0:00:02"]
[BlackClock "0:00:04"]
[Board "96"]

1. d4 {[%clk 0:03:00]}  c5 {[%clk 0:02:55]} 2. d5 {[%clk 0:03:00]}  Nf6 {[%clk 0:02:55]} 3. Nc3 {[%clk 0:03:00]}  e5 {[%clk 0:02:53]} 4. e4 {[%clk 0:03:00]}  d6 {[%clk 0:02:53]} 5. Bb5+ {[%clk 0:02:58]}  Bd7 {[%clk 0:02:52]} 6. a4 {[%clk 0:02:58]}  a6 {[%clk 0:02:52]} 7. Be2 {[%clk 0:02:54]}  g6 {[%clk 0:02:50]} 8. Nf3 {[%clk 0:02:54]}  Bg7 {[%clk 0:02:50]} 9. O-O {[%clk 0:02:54]}  O-O {[%clk 0:02:50]} 10. a5 {[%clk 0:02:53]}  Bg4 {[%clk 0:02:49]} 11. Nd2 {[%clk 0:02:53]}  Bxe2 {[%clk 0:02:48]} 12. Qxe2 {[%clk 0:02:54]}  Nbd7 {[%clk 0:02:48]} 13. Nc4 {[%clk 0:02:54]}  Qc7 {[%clk 0:02:47]} 14. Be3 {[%clk 0:02:43]}  b5 {[%clk 0:02:43]} 15. axb6 {[%clk 0:02:41]}  Nxb6 {[%clk 0:02:43]} 16. Na5 {[%clk 0:02:42]}  Nfd7 {[%clk 0:02:32]} 17. Nc6 {[%clk 0:02:41]}  f5 {[%clk 0:02:24]} 18. f3 {[%clk 0:02:41]}  f4 {[%clk 0:02:20]} 19. Bf2 {[%clk 0:02:41]}  Nb8 {[%clk 0:02:14]} 20. Nxb8 {[%clk 0:02:29]}  Rfxb8 {[%clk 0:02:10]} 21. Rxa6 {[%clk 0:02:29]}  Rxa6 {[%clk 0:01:58]} 22. Qxa6 {[%clk 0:02:28]}  Ra8 {[%clk 0:01:58]} 23. Qb5 {[%clk 0:02:15]}  h6 {[%clk 0:01:38]} 24. b3 {[%clk 0:02:01]}  Bf8 {[%clk 0:01:31]} 25. Qe2 {[%clk 0:01:57]}  g5 {[%clk 0:00:56]} 26. Nb5 {[%clk 0:01:48]}  Qd7 {[%clk 0:00:54]} 27. c4 {[%clk 0:01:47]}  h5 {[%clk 0:00:50]} 28. b4 {[%clk 0:01:34]}  Ra4 {[%clk 0:00:35]} 29. Rb1 {[%clk 0:01:25]}  g4 {[%clk 0:00:16]} 30. bxc5 {[%clk 0:01:15]}  dxc5 {[%clk 0:00:16]} 31. Nc3 {[%clk 0:01:16]}  Rxc4 {[%clk 0:00:13]} 32. Rxb6 {[%clk 0:01:03]}  Rxc3 {[%clk 0:00:13]} 33. Rg6+ {[%clk 0:00:49]}  Kh7 {[%clk 0:00:12]} 34. Rg5 {[%clk 0:00:47]}  Rc1+ {[%clk 0:00:10]} 35. Be1 {[%clk 0:00:47]}  Qa4 {[%clk 0:00:06]} 36. Rxh5+ {[%clk 0:00:21]}  Kg6 {[%clk 0:00:06]} 37. fxg4 {[%clk 0:00:21]}  Qd4+ {[%clk 0:00:05]} 38. Kf1 {[%clk 0:00:21]}  c4 {[%clk 0:00:05]} 39. g5 {[%clk 0:00:10]}  Bc5 {[%clk 0:00:04]} 40. Rh6+ {[%clk 0:00:10]}  Kg7 {[%clk 0:00:04]} 41. Rh7+ {[%clk 0:00:07]}  Kf8 {[%clk 0:00:02]} 42. Rf7+ {[%clk 0:00:03]}  Kxf7 {[%clk 0:00:02]} 43. Qh5+ {[%clk 0:00:03]}  Ke7 {[%clk 0:00:03]} 44. Qh7+ {[%clk 0:00:03]}  Kd8 {[%clk 0:00:03]} 45. Qg8+ {[%clk 0:00:03]}  Kc7 {[%clk 0:00:04]} 46. Qf7+ {[%clk 0:00:03]}  Kb6 {[%clk 0:00:05]} 47. Qe6+ {[%clk 0:00:04]}  Kb5 {[%clk 0:00:04]} 48. Qd7+ {[%clk 0:00:03]}  Ka6 {[%clk 0:00:03]} 49. Qc8+ {[%clk 0:00:02]}  Ka7 {[%clk 0:00:03]} 50. Qd7+ {[%clk 0:00:02]}  Kb8 {[%clk 0:00:04]} 51. Qd8+ {[%clk 0:00:02]}  Kb7 {[%clk 0:00:04]} 52. Qd7+ {[%clk 0:00:03]}  Ka8 {[%clk 0:00:04]} 53. Qc8+ {[%clk 0:00:02]}  Ka7 {[%clk 0:00:05]} 54. Qd7+ {[%clk 0:00:02]}  Ka6 {[%clk 0:00:03]} 55. Qa4+ {[%clk 0:00:01]}  Kb6 {[%clk 0:00:03]} 56. Qc6+ {[%clk 0:00:02]}  Ka7 {[%clk 0:00:02]} 57. Qc7+ {[%clk 0:00:02]}  Ka8 {[%clk 0:00:03]} 58. Qc8+ {[%clk 0:00:02]}  Ka7 {[%clk 0:00:04]} 1/2-1/2


[Site "https://www.chess.com"]

[Event "Titled Tuesday Blitz July 18 Late 2023"]
[White "Grinev, Valeriy"]
[Black "Kanyamarala, Trisha"]
[WhiteFideId "14117517"]
[BlackFideId "45004722"]
[WhiteElo "2554"]
[BlackElo "2359"]
[Result "0-1"]
[Round "4"]
[TimeControl "180+2"]
[Date "2023.07.18"]
[WhiteClock "0:01:46"]
[BlackClock "0:01:22"]
[Board "98"]

1. e4 {[%clk 0:03:00]}  c5 {[%clk 0:02:56]} 2. Nc3 {[%clk 0:03:01]}  Nc6 {[%clk 0:02:55]} 3. g3 {[%clk 0:03:02]}  g6 {[%clk 0:02:52]} 4. Bg2 {[%clk 0:03:03]}  Bg7 {[%clk 0:02:52]} 5. Nge2 {[%clk 0:03:03]}  Nf6 {[%clk 0:02:51]} 6. O-O {[%clk 0:03:04]}  O-O {[%clk 0:02:51]} 7. a4 {[%clk 0:03:03]}  d6 {[%clk 0:02:51]} 8. f4 {[%clk 0:03:02]}  a6 {[%clk 0:02:51]} 9. h3 {[%clk 0:02:59]}  Rb8 {[%clk 0:02:51]} 10. Kh2 {[%clk 0:02:59]}  Bd7 {[%clk 0:02:50]} 11. d4 {[%clk 0:02:59]}  cxd4 {[%clk 0:02:49]} 12. Nd5 {[%clk 0:02:59]}  b5 {[%clk 0:02:30]} 13. axb5 {[%clk 0:02:57]}  axb5 {[%clk 0:02:30]} 14. b3 {[%clk 0:02:46]}  Nxd5 {[%clk 0:02:17]} 15. exd5 {[%clk 0:02:44]}  d3 {[%clk 0:02:17]} 16. dxc6 {[%clk 0:02:41]}  dxe2 {[%clk 0:02:15]} 17. Qxe2 {[%clk 0:02:40]}  Bxa1 {[%clk 0:02:15]} 18. cxd7 {[%clk 0:02:39]}  Qxd7 {[%clk 0:02:15]} 19. f5 {[%clk 0:02:35]}  Bg7 {[%clk 0:02:14]} 20. h4 {[%clk 0:02:27]}  Rbc8 {[%clk 0:02:11]} 21. h5 {[%clk 0:02:26]}  Rc5 {[%clk 0:01:56]} 22. hxg6 {[%clk 0:02:19]}  hxg6 {[%clk 0:01:55]} 23. fxg6 {[%clk 0:02:17]}  fxg6 {[%clk 0:01:54]} 24. Rxf8+ {[%clk 0:02:15]}  Kxf8 {[%clk 0:01:54]} 25. b4 {[%clk 0:02:07]}  Rh5+ {[%clk 0:01:52]} 26. Kg1 {[%clk 0:02:05]}  Bd4+ {[%clk 0:01:51]} 27. Kf1 {[%clk 0:02:05]}  Qf5+ {[%clk 0:01:36]} 28. Bf3 {[%clk 0:02:02]}  Rh1+ {[%clk 0:01:31]} 29. Kg2 {[%clk 0:01:57]}  Rg1+ {[%clk 0:01:27]} 30. Kh2 {[%clk 0:01:53]}  Rxc1 {[%clk 0:01:25]} 31. Qd2 {[%clk 0:01:48]}  Rxc2 {[%clk 0:01:24]} 32. Qxc2 {[%clk 0:01:47]}  Qxc2+ {[%clk 0:01:25]} 33. Kh3 {[%clk 0:01:46]}  Be5 {[%clk 0:01:22]} 0-1


[Site "https://www.chess.com"]

[Event "Titled Tuesday Blitz July 18 Late 2023"]
[White "Berezin, Viktor"]
[Black "BrandonJiang123456"]
[WhiteFideId "14107872"]
[WhiteElo "2507"]
[BlackElo "2281"]
[Result "1-0"]
[Round "4"]
[TimeControl "180+2"]
[Date "2023.07.18"]
[WhiteClock "0:00:23"]
[BlackClock "0:00:00"]
[Board "103"]

1. d4 {[%clk 0:03:00]}  f5 {[%clk 0:02:59]} 2. Nf3 {[%clk 0:02:53]}  Nf6 {[%clk 0:02:57]} 3. g3 {[%clk 0:02:49]}  d6 {[%clk 0:02:53]} 4. Bg2 {[%clk 0:02:49]}  g6 {[%clk 0:02:53]} 5. O-O {[%clk 0:02:49]}  Bg7 {[%clk 0:02:54]} 6. c4 {[%clk 0:02:48]}  O-O {[%clk 0:02:55]} 7. Nc3 {[%clk 0:02:48]}  c6 {[%clk 0:02:54]} 8. b4 {[%clk 0:02:45]}  Be6 {[%clk 0:02:37]} 9. Qd3 {[%clk 0:02:37]}  Na6 {[%clk 0:02:35]} 10. Rb1 {[%clk 0:02:35]}  Nc7 {[%clk 0:02:32]} 11. b5 {[%clk 0:02:32]}  Ne4 {[%clk 0:02:20]} 12. bxc6 {[%clk 0:02:24]}  bxc6 {[%clk 0:02:19]} 13. Ng5 {[%clk 0:02:20]}  d5 {[%clk 0:01:29]} 14. Nxe6 {[%clk 0:02:05]}  Nxe6 {[%clk 0:01:26]} 15. e3 {[%clk 0:02:05]}  Nc7 {[%clk 0:01:10]} 16. Ba3 {[%clk 0:02:01]}  Rf7 {[%clk 0:01:05]} 17. cxd5 {[%clk 0:01:50]}  cxd5 {[%clk 0:01:02]} 18. Ne2 {[%clk 0:01:36]}  e6 {[%clk 0:00:59]} 19. Rfc1 {[%clk 0:01:33]}  Bf8 {[%clk 0:00:56]} 20. Nf4 {[%clk 0:01:23]}  g5 {[%clk 0:00:48]} 21. Ne2 {[%clk 0:01:21]}  Rb8 {[%clk 0:00:37]} 22. Bxf8 {[%clk 0:01:04]}  Qxf8 {[%clk 0:00:32]} 23. Rxb8 {[%clk 0:00:47]}  Qxb8 {[%clk 0:00:28]} 24. Rb1 {[%clk 0:00:47]}  Qc8 {[%clk 0:00:20]} 25. Nc3 {[%clk 0:00:44]}  h5 {[%clk 0:00:14]} 26. Na4 {[%clk 0:00:32]}  Qa6 {[%clk 0:00:06]} 27. Qc2 {[%clk 0:00:23]}  Kg7 {[%clk 0:00:00]} 28. Bf1 {[%clk 0:00:23]} 1-0


[Site "https://www.chess.com"]

[Event "Titled Tuesday Blitz July 18 Late 2023"]
[White "UgarteCesar"]
[Black "Shapiro, Viktor"]
[BlackFideId "4175700"]
[WhiteElo "2243"]
[BlackElo "2493"]
[Result "0-1"]
[Round "4"]
[TimeControl "180+2"]
[Date "2023.07.18"]
[WhiteClock "0:00:06"]
[BlackClock "0:00:26"]
[Board "104"]

1. d4 {[%clk 0:02:52]}  Nf6 {[%clk 0:02:57]} 2. Bf4 {[%clk 0:02:52]}  g6 {[%clk 0:02:54]} 3. e3 {[%clk 0:02:52]}  Bg7 {[%clk 0:02:51]} 4. h3 {[%clk 0:02:52]}  d6 {[%clk 0:02:51]} 5. Nf3 {[%clk 0:02:52]}  Nbd7 {[%clk 0:02:49]} 6. Be2 {[%clk 0:02:53]}  O-O {[%clk 0:02:49]} 7. O-O {[%clk 0:02:53]}  e6 {[%clk 0:02:49]} 8. c4 {[%clk 0:02:48]}  b6 {[%clk 0:02:49]} 9. a4 {[%clk 0:02:47]}  a5 {[%clk 0:02:43]} 10. Nc3 {[%clk 0:02:46]}  Bb7 {[%clk 0:02:44]} 11. Qc2 {[%clk 0:02:43]}  Qe7 {[%clk 0:02:42]} 12. Bh2 {[%clk 0:02:33]}  e5 {[%clk 0:02:39]} 13. dxe5 {[%clk 0:02:33]}  Nxe5 {[%clk 0:02:30]} 14. Nxe5 {[%clk 0:02:33]}  dxe5 {[%clk 0:02:31]} 15. Rfd1 {[%clk 0:02:30]}  Rfd8 {[%clk 0:02:23]} 16. Bg3 {[%clk 0:02:20]}  h6 {[%clk 0:02:09]} 17. Rxd8+ {[%clk 0:02:10]}  Rxd8 {[%clk 0:02:09]} 18. Rd1 {[%clk 0:02:11]}  Rxd1+ {[%clk 0:02:05]} 19. Qxd1 {[%clk 0:02:11]}  Nd7 {[%clk 0:01:59]} 20. Nd5 {[%clk 0:02:09]}  Qd6 {[%clk 0:01:57]} 21. Bf3 {[%clk 0:02:06]}  Nc5 {[%clk 0:01:50]} 22. b3 {[%clk 0:01:49]}  f5 {[%clk 0:01:42]} 23. Qc2 {[%clk 0:01:34]}  Bc8 {[%clk 0:01:32]} 24. Nc3 {[%clk 0:01:28]}  c6 {[%clk 0:01:17]} 25. Kf1 {[%clk 0:01:13]}  f4 {[%clk 0:01:04]} 26. Bh2 {[%clk 0:00:54]}  Bf5 {[%clk 0:01:02]} 27. e4 {[%clk 0:00:47]}  Bd7 {[%clk 0:00:56]} 28. g3 {[%clk 0:00:47]}  Bxh3+ {[%clk 0:00:46]} 29. Ke2 {[%clk 0:00:47]}  g5 {[%clk 0:00:39]} 30. g4 {[%clk 0:00:42]}  h5 {[%clk 0:00:39]} 31. gxh5 {[%clk 0:00:39]}  g4 {[%clk 0:00:39]} 32. Bh1 {[%clk 0:00:39]}  f3+ {[%clk 0:00:32]} 33. Bxf3 {[%clk 0:00:13]}  gxf3+ {[%clk 0:00:30]} 34. Kxf3 {[%clk 0:00:06]}  Qd7 {[%clk 0:00:26]} 0-1


[Site "https://www.chess.com"]

[Event "Titled Tuesday Blitz July 18 Late 2023"]
[White "Jovic, Stanoje"]
[Black "Djordjevic, Dejan N"]
[WhiteFideId "905020"]
[BlackFideId "913316"]
[WhiteElo "2489"]
[BlackElo "2077"]
[Result "0-1"]
[Round "4"]
[TimeControl "180+2"]
[Date "2023.07.18"]
[WhiteClock "0:00:00"]
[BlackClock "0:00:13"]
[Board "105"]

1. c4 {[%clk 0:03:00]}  Nf6 {[%clk 0:02:59]} 2. g3 {[%clk 0:03:00]}  g6 {[%clk 0:02:59]} 3. Bg2 {[%clk 0:03:01]}  Bg7 {[%clk 0:03:00]} 4. Nc3 {[%clk 0:03:01]}  O-O {[%clk 0:03:00]} 5. Nf3 {[%clk 0:03:01]}  d6 {[%clk 0:03:01]} 6. O-O {[%clk 0:03:01]}  Nc6 {[%clk 0:03:01]} 7. d3 {[%clk 0:03:01]}  a6 {[%clk 0:03:01]} 8. Rb1 {[%clk 0:03:01]}  Rb8 {[%clk 0:03:01]} 9. b4 {[%clk 0:03:01]}  b5 {[%clk 0:03:00]} 10. cxb5 {[%clk 0:03:01]}  axb5 {[%clk 0:03:00]} 11. Qc2 {[%clk 0:03:01]}  Bd7 {[%clk 0:03:00]} 12. h3 {[%clk 0:03:00]}  Qc8 {[%clk 0:02:59]} 13. Kh2 {[%clk 0:02:59]}  h5 {[%clk 0:02:58]} 14. Bg5 {[%clk 0:02:54]}  Re8 {[%clk 0:02:55]} 15. Rfc1 {[%clk 0:02:53]}  e6 {[%clk 0:02:43]} 16. a3 {[%clk 0:02:30]}  Qa6 {[%clk 0:02:42]} 17. a4 {[%clk 0:02:23]}  Na7 {[%clk 0:02:28]} 18. a5 {[%clk 0:02:19]}  Nc6 {[%clk 0:02:18]} 19. Ne4 {[%clk 0:02:05]}  Nd5 {[%clk 0:02:16]} 20. Bd2 {[%clk 0:02:02]}  Rec8 {[%clk 0:02:14]} 21. Nfg5 {[%clk 0:01:55]}  f5 {[%clk 0:02:11]} 22. Qb3 {[%clk 0:01:40]}  Nd4 {[%clk 0:02:02]} 23. Qd1 {[%clk 0:01:30]}  fxe4 {[%clk 0:02:01]} 24. dxe4 {[%clk 0:01:30]}  Ne7 {[%clk 0:01:57]} 25. Bc3 {[%clk 0:01:26]}  e5 {[%clk 0:01:48]} 26. Bxd4 {[%clk 0:01:25]}  exd4 {[%clk 0:01:48]} 27. Qb3+ {[%clk 0:01:24]}  d5 {[%clk 0:01:42]} 28. exd5 {[%clk 0:01:21]}  Kh8 {[%clk 0:01:32]} 29. Rc6 {[%clk 0:01:03]}  Bxc6 {[%clk 0:01:21]} 30. dxc6 {[%clk 0:01:03]}  Rf8 {[%clk 0:01:21]} 31. Qe6 {[%clk 0:00:56]}  Rbe8 {[%clk 0:01:16]} 32. Nf7+ {[%clk 0:00:46]}  Rxf7 {[%clk 0:01:10]} 33. Qxf7 {[%clk 0:00:46]}  Qc8 {[%clk 0:01:10]} 34. a6 {[%clk 0:00:35]}  Kh7 {[%clk 0:01:06]} 35. a7 {[%clk 0:00:32]}  Nf5 {[%clk 0:01:02]} 36. Qd7 {[%clk 0:00:29]}  Qa8 {[%clk 0:00:53]} 37. Ra1 {[%clk 0:00:26]}  Rxe2 {[%clk 0:00:52]} 38. Qxc7 {[%clk 0:00:24]}  Rxf2 {[%clk 0:00:45]} 39. Qb7 {[%clk 0:00:20]}  Qe8 {[%clk 0:00:38]} 40. c7 {[%clk 0:00:17]}  Qe5 {[%clk 0:00:31]} 41. c8=Q {[%clk 0:00:10]}  Nxg3 {[%clk 0:00:22]} 42. Qcb8 {[%clk 0:00:04]}  Nf1+ {[%clk 0:00:20]} 43. Kg1 {[%clk 0:00:00]}  Qe3 {[%clk 0:00:13]} 0-1


[Site "https://www.chess.com"]

[Event "Titled Tuesday Blitz July 18 Late 2023"]
[White "Schmakel, Sam"]
[Black "Al Mukhaini, Shima"]
[WhiteFideId "2039311"]
[BlackFideId "22005854"]
[WhiteElo "2737"]
[BlackElo "2405"]
[Result "1-0"]
[Round "4"]
[TimeControl "180+2"]
[Date "2023.07.18"]
[WhiteClock "0:00:14"]
[BlackClock "0:00:03"]
[Board "106"]

1. e4 {[%clk 0:03:00]}  d5 {[%clk 0:03:00]} 2. exd5 {[%clk 0:03:00]}  Nf6 {[%clk 0:03:00]} 3. d4 {[%clk 0:02:59]}  Bg4 {[%clk 0:02:59]} 4. Bb5+ {[%clk 0:02:55]}  c6 {[%clk 0:02:58]} 5. dxc6 {[%clk 0:02:55]}  Nxc6 {[%clk 0:02:58]} 6. Nf3 {[%clk 0:02:50]}  Qb6 {[%clk 0:02:58]} 7. Nc3 {[%clk 0:02:49]}  O-O-O {[%clk 0:02:52]} 8. Be3 {[%clk 0:02:48]}  e5 {[%clk 0:02:38]} 9. d5 {[%clk 0:02:48]}  Qa5 {[%clk 0:02:34]} 10. Bxc6 {[%clk 0:01:56]}  bxc6 {[%clk 0:02:28]} 11. Bd2 {[%clk 0:01:28]}  cxd5 {[%clk 0:02:23]} 12. h3 {[%clk 0:01:27]}  Bh5 {[%clk 0:01:48]} 13. a4 {[%clk 0:01:21]}  Bb4 {[%clk 0:01:46]} 14. g4 {[%clk 0:01:11]}  Bg6 {[%clk 0:01:46]} 15. O-O {[%clk 0:01:04]}  d4 {[%clk 0:01:40]} 16. Nb5 {[%clk 0:01:02]}  a6 {[%clk 0:01:35]} 17. Na7+ {[%clk 0:00:43]}  Kb7 {[%clk 0:01:34]} 18. Bxb4 {[%clk 0:00:43]}  Qxb4 {[%clk 0:01:34]} 19. Nxe5 {[%clk 0:00:44]}  Rhe8 {[%clk 0:01:25]} 20. Nac6 {[%clk 0:00:41]}  Qd6 {[%clk 0:01:15]} 21. Nxd8+ {[%clk 0:00:41]}  Rxd8 {[%clk 0:01:09]} 22. Nxg6 {[%clk 0:00:42]}  hxg6 {[%clk 0:01:08]} 23. Qf3+ {[%clk 0:00:42]}  Ka7 {[%clk 0:01:08]} 24. Rfd1 {[%clk 0:00:42]}  Rd7 {[%clk 0:00:53]} 25. Rd3 {[%clk 0:00:36]}  Qb4 {[%clk 0:00:52]} 26. b3 {[%clk 0:00:30]}  Ne8 {[%clk 0:00:38]} 27. Rad1 {[%clk 0:00:26]}  Nc7 {[%clk 0:00:38]} 28. Qc6 {[%clk 0:00:16]}  Re7 {[%clk 0:00:15]} 29. Rxd4 {[%clk 0:00:14]}  Re1+ {[%clk 0:00:10]} 30. Kg2 {[%clk 0:00:14]}  Qb7 {[%clk 0:00:05]} 31. Qxb7+ {[%clk 0:00:14]}  Kxb7 {[%clk 0:00:03]} 32. Rxe1 {[%clk 0:00:14]} 1-0


[Site "https://www.chess.com"]

[Event "Titled Tuesday Blitz July 18 Late 2023"]
[White "Leiva, Gianmarco"]
[Black "Melikhov, Evgeny V."]
[WhiteFideId "3804399"]
[BlackFideId "4122046"]
[WhiteElo "2719"]
[BlackElo "2404"]
[Result "1-0"]
[Round "4"]
[TimeControl "180+2"]
[Date "2023.07.18"]
[WhiteClock "0:00:12"]
[BlackClock "0:00:25"]
[Board "107"]

1. e4 {[%clk 0:03:00]}  e5 {[%clk 0:02:55]} 2. Nf3 {[%clk 0:03:01]}  Nc6 {[%clk 0:02:56]} 3. Bc4 {[%clk 0:03:01]}  Nf6 {[%clk 0:02:55]} 4. d3 {[%clk 0:03:01]}  Be7 {[%clk 0:02:55]} 5. Nc3 {[%clk 0:02:51]}  d6 {[%clk 0:02:53]} 6. h3 {[%clk 0:02:47]}  O-O {[%clk 0:02:50]} 7. a3 {[%clk 0:02:46]}  Be6 {[%clk 0:02:50]} 8. O-O {[%clk 0:02:23]}  Qd7 {[%clk 0:02:48]} 9. Re1 {[%clk 0:02:18]}  Nd4 {[%clk 0:02:41]} 10. Nxd4 {[%clk 0:02:10]}  exd4 {[%clk 0:02:41]} 11. Bxe6 {[%clk 0:02:11]}  fxe6 {[%clk 0:02:33]} 12. Ne2 {[%clk 0:02:11]}  c5 {[%clk 0:02:30]} 13. Ng3 {[%clk 0:02:06]}  Rf7 {[%clk 0:02:22]} 14. f4 {[%clk 0:02:01]}  Raf8 {[%clk 0:02:21]} 15. Bd2 {[%clk 0:02:00]}  Bd8 {[%clk 0:02:16]} 16. Qe2 {[%clk 0:01:56]}  Bc7 {[%clk 0:02:15]} 17. Rf1 {[%clk 0:01:50]}  Qe7 {[%clk 0:02:00]} 18. Rf2 {[%clk 0:01:29]}  Nd7 {[%clk 0:02:00]} 19. e5 {[%clk 0:01:29]}  d5 {[%clk 0:01:48]} 20. Raf1 {[%clk 0:01:16]}  Qh4 {[%clk 0:01:40]} 21. Rf3 {[%clk 0:01:02]}  b5 {[%clk 0:01:23]} 22. Kh2 {[%clk 0:00:51]}  a5 {[%clk 0:01:19]} 23. Qf2 {[%clk 0:00:23]}  Nxe5 {[%clk 0:00:57]} 24. fxe5 {[%clk 0:00:22]}  Rxf3 {[%clk 0:00:57]} 25. gxf3 {[%clk 0:00:22]}  Bxe5 {[%clk 0:00:56]} 26. f4 {[%clk 0:00:22]}  Bc7 {[%clk 0:00:48]} 27. Qe2 {[%clk 0:00:22]}  Rf6 {[%clk 0:00:43]} 28. Qh5 {[%clk 0:00:19]}  Qxh5 {[%clk 0:00:42]} 29. Nxh5 {[%clk 0:00:20]}  Rf7 {[%clk 0:00:43]} 30. Kg2 {[%clk 0:00:16]}  g6 {[%clk 0:00:38]} 31. Ng3 {[%clk 0:00:17]}  h5 {[%clk 0:00:38]} 32. Ne2 {[%clk 0:00:16]}  e5 {[%clk 0:00:36]} 33. fxe5 {[%clk 0:00:15]}  Bxe5 {[%clk 0:00:36]} 34. Rxf7 {[%clk 0:00:16]}  Kxf7 {[%clk 0:00:37]} 35. Bxa5 {[%clk 0:00:16]}  Ke6 {[%clk 0:00:37]} 36. b4 {[%clk 0:00:13]}  c4 {[%clk 0:00:35]} 37. Bb6 {[%clk 0:00:13]}  Kf5 {[%clk 0:00:30]} 38. Bxd4 {[%clk 0:00:12]}  Bd6 {[%clk 0:00:25]} 39. Nc3 {[%clk 0:00:12]} 1-0


[Site "https://www.chess.com"]

[Event "Titled Tuesday Blitz July 18 Late 2023"]
[White "Yolosz"]
[Black "Adewumi, Tanitoluwa"]
[BlackFideId "30966396"]
[WhiteElo "2402"]
[BlackElo "2649"]
[Result "0-1"]
[Round "4"]
[TimeControl "180+2"]
[Date "2023.07.18"]
[WhiteClock "0:00:00"]
[BlackClock "0:00:18"]
[Board "108"]

1. d4 {[%clk 0:03:00]}  Nf6 {[%clk 0:02:49]} 2. Bf4 {[%clk 0:03:00]}  e6 {[%clk 0:02:44]} 3. e3 {[%clk 0:02:58]}  c5 {[%clk 0:02:43]} 4. c3 {[%clk 0:02:56]}  d5 {[%clk 0:02:43]} 5. Nd2 {[%clk 0:02:55]}  Bd6 {[%clk 0:02:43]} 6. Bg3 {[%clk 0:02:54]}  O-O {[%clk 0:02:42]} 7. Bd3 {[%clk 0:02:54]}  Qc7 {[%clk 0:02:42]} 8. Ngf3 {[%clk 0:02:51]}  b6 {[%clk 0:02:35]} 9. Ne5 {[%clk 0:02:44]}  Ba6 {[%clk 0:02:35]} 10. Qe2 {[%clk 0:02:32]}  Bxd3 {[%clk 0:02:34]} 11. Qxd3 {[%clk 0:02:33]}  Nbd7 {[%clk 0:02:27]} 12. f4 {[%clk 0:02:28]}  Qb7 {[%clk 0:02:15]} 13. Ndf3 {[%clk 0:02:06]}  Ne4 {[%clk 0:02:13]} 14. Nxd7 {[%clk 0:02:03]}  Qxd7 {[%clk 0:02:14]} 15. Ne5 {[%clk 0:02:03]}  Bxe5 {[%clk 0:02:13]} 16. fxe5 {[%clk 0:02:01]}  f5 {[%clk 0:02:01]} 17. O-O-O {[%clk 0:01:50]}  Qa4 {[%clk 0:01:58]} 18. Kb1 {[%clk 0:01:48]}  cxd4 {[%clk 0:01:52]} 19. exd4 {[%clk 0:01:44]}  b5 {[%clk 0:01:51]} 20. Be1 {[%clk 0:01:05]}  Rfc8 {[%clk 0:01:46]} 21. Rf1 {[%clk 0:01:03]}  a5 {[%clk 0:01:36]} 22. g4 {[%clk 0:01:01]}  b4 {[%clk 0:01:22]} 23. c4 {[%clk 0:00:53]}  dxc4 {[%clk 0:01:15]} 24. Qe2 {[%clk 0:00:44]}  c3 {[%clk 0:01:07]} 25. b3 {[%clk 0:00:40]}  Qa3 {[%clk 0:00:53]} 26. Qc2 {[%clk 0:00:25]}  a4 {[%clk 0:00:52]} 27. Rc1 {[%clk 0:00:14]}  axb3 {[%clk 0:00:51]} 28. Qxb3 {[%clk 0:00:15]}  Qxb3+ {[%clk 0:00:42]} 29. axb3 {[%clk 0:00:16]}  Ra3 {[%clk 0:00:39]} 30. gxf5 {[%clk 0:00:15]}  Rxb3+ {[%clk 0:00:29]} 31. Kc2 {[%clk 0:00:16]}  Rb2+ {[%clk 0:00:29]} 32. Kd3 {[%clk 0:00:16]}  exf5 {[%clk 0:00:30]} 33. Rxf5 {[%clk 0:00:16]}  g6 {[%clk 0:00:26]} 34. Rf3 {[%clk 0:00:08]}  Nd2 {[%clk 0:00:22]} 35. Bxd2 {[%clk 0:00:07]}  Rxd2+ {[%clk 0:00:22]} 36. Ke4 {[%clk 0:00:08]}  c2 {[%clk 0:00:21]} 37. e6 {[%clk 0:00:05]}  Rd1 {[%clk 0:00:19]} 38. Rxc2 {[%clk 0:00:04]}  Rxc2 {[%clk 0:00:19]} 39. d5 {[%clk 0:00:03]}  Re2+ {[%clk 0:00:19]} 40. Kf4 {[%clk 0:00:00]}  Rxd5 {[%clk 0:00:18]} 0-1


[Site "https://www.chess.com"]

[Event "Titled Tuesday Blitz July 18 Late 2023"]
[White "Lewicki, Miroslaw"]
[Black "Yordanov, Nikolay Plamenov"]
[WhiteFideId "1113380"]
[BlackFideId "2907445"]
[WhiteElo "2642"]
[BlackElo "2400"]
[Result "0-1"]
[Round "4"]
[TimeControl "180+2"]
[Date "2023.07.18"]
[WhiteClock "0:00:00"]
[BlackClock "0:00:14"]
[Board "109"]

1. f3 {[%clk 0:03:00]}  d5 {[%clk 0:02:59]} 2. Kf2 {[%clk 0:03:01]}  e5 {[%clk 0:02:59]} 3. g3 {[%clk 0:03:02]}  Nf6 {[%clk 0:03:00]} 4. Kg2 {[%clk 0:03:02]}  Nc6 {[%clk 0:03:00]} 5. d3 {[%clk 0:03:03]}  h5 {[%clk 0:03:00]} 6. h4 {[%clk 0:03:02]}  Be6 {[%clk 0:02:59]} 7. Nc3 {[%clk 0:03:01]}  Bd6 {[%clk 0:02:59]} 8. e4 {[%clk 0:03:00]}  dxe4 {[%clk 0:02:57]} 9. dxe4 {[%clk 0:03:00]}  Qe7 {[%clk 0:02:57]} 10. Bg5 {[%clk 0:03:00]}  O-O-O {[%clk 0:02:51]} 11. Nd5 {[%clk 0:03:00]}  Bxd5 {[%clk 0:02:48]} 12. exd5 {[%clk 0:03:00]}  Nd4 {[%clk 0:02:45]} 13. c3 {[%clk 0:02:56]}  Nf5 {[%clk 0:02:40]} 14. Kh2 {[%clk 0:02:46]}  e4 {[%clk 0:02:35]} 15. Bh3 {[%clk 0:02:46]}  g6 {[%clk 0:02:04]} 16. Qd4 {[%clk 0:02:30]}  Bxg3+ {[%clk 0:01:44]} 17. Kg2 {[%clk 0:02:30]}  exf3+ {[%clk 0:01:45]} 18. Kf1 {[%clk 0:02:22]}  Rhe8 {[%clk 0:01:35]} 19. Qd2 {[%clk 0:01:50]}  Ne4 {[%clk 0:01:17]} 20. Qd1 {[%clk 0:01:37]}  Nxg5 {[%clk 0:01:13]} 21. hxg5 {[%clk 0:01:36]}  Qd7 {[%clk 0:00:53]} 22. Qxf3 {[%clk 0:01:30]}  Ne3+ {[%clk 0:00:40]} 23. Qxe3 {[%clk 0:01:30]}  Rxe3 {[%clk 0:00:33]} 24. Ne2 {[%clk 0:01:30]}  Rf3+ {[%clk 0:00:29]} 25. Kg2 {[%clk 0:01:30]}  Rf5 {[%clk 0:00:30]} 26. Kxg3 {[%clk 0:01:23]}  Kb8 {[%clk 0:00:25]} 27. Bxf5 {[%clk 0:01:22]}  Qxf5 {[%clk 0:00:26]} 28. Rhf1 {[%clk 0:01:16]}  Qxg5+ {[%clk 0:00:26]} 29. Kf2 {[%clk 0:01:10]}  Rxd5 {[%clk 0:00:26]} 30. Rad1 {[%clk 0:01:08]}  Rf5+ {[%clk 0:00:22]} 31. Ke1 {[%clk 0:01:07]}  Qh4+ {[%clk 0:00:23]} 32. Kd2 {[%clk 0:01:07]}  Rd5+ {[%clk 0:00:23]} 33. Kc1 {[%clk 0:00:45]}  Rxd1+ {[%clk 0:00:23]} 34. Rxd1 {[%clk 0:00:42]}  b6 {[%clk 0:00:24]} 35. Nd4 {[%clk 0:00:41]}  Qf4+ {[%clk 0:00:23]} 36. Kc2 {[%clk 0:00:41]}  Kb7 {[%clk 0:00:23]} 37. b4 {[%clk 0:00:42]}  h4 {[%clk 0:00:23]} 38. b5 {[%clk 0:00:42]}  a6 {[%clk 0:00:20]} 39. a4 {[%clk 0:00:41]}  a5 {[%clk 0:00:20]} 40. Kb3 {[%clk 0:00:37]}  h3 {[%clk 0:00:18]} 41. Nc6 {[%clk 0:00:37]}  Qg5 {[%clk 0:00:16]} 42. Re1 {[%clk 0:00:25]}  Qd5+ {[%clk 0:00:15]} 43. Ka3 {[%clk 0:00:22]}  Qd6+ {[%clk 0:00:14]} 44. Kb3 {[%clk 0:00:22]}  Qe6+ {[%clk 0:00:13]} 45. Rxe6 {[%clk 0:00:21]}  fxe6 {[%clk 0:00:14]} 46. Nd8+ {[%clk 0:00:21]}  Kc8 {[%clk 0:00:13]} 47. Nxe6 {[%clk 0:00:20]}  h2 {[%clk 0:00:14]} 48. Ng5 {[%clk 0:00:00]}  h1=Q {[%clk 0:00:14]} 0-1


[Site "https://www.chess.com"]